{"text_format":"1","workbook":"xlsx","n_sheets":1,"sheets":["price bid "],"not_rendered":{"charts":0,"images":0,"macros":1,"external_links":1,"defined_names":2,"comments":0,"pivot_tables":0},"unopened":[],"bounds":{"document_bytes":16777216,"sheet_cells":100000,"rows_first":2000,"rows_last":500,"rows_between":2000,"halvings":0,"cell_chars":16384,"cell_head_chars":4096},"cells_cut":0,"cells_raw":0,"read":"whole","date_system":"1900"}

{"sheet":"price bid ","index":0,"n_rows":41,"n_cols":10,"rows_kept":41,"cut":false,"hidden":false,"merged":[[37,1,37,6],[35,1,35,6],[36,1,36,6],[33,3,33,6],[0,0,0,6],[3,0,3,6],[1,0,1,6],[2,0,2,6],[4,0,4,2],[4,4,4,6],[33,0,33,2],[32,3,32,5],[34,0,34,6]]}
["    BHARAT HEAVY ELECTRICAL LIMITED , JHANSI              "]
["TOWNSHIP CIVIL DEPARTMENT"]
["PRICE BID (JS-146)"]
["Name of Work :  Repair & maintenance works in Club Bundela."]
["Tender Enq No-TCX / TW / 22/07"]
["Sl. No.","Description of Work","% Allocation (Item-wise)","Unit ","Quantity ","Rate per Unit (in Rs.)","Amount (in Rs.)"]
[1,"By Mechanical Transport including loading, unloading and stacking:  Lime, moorum, building rubbish",1.24399952E-2,"Cum",1,{"$f":"G7/E7","v":0},{"$f":"$G$33*C7%","v":0},null,78.680000000000007,{"$f":"E7*I7","v":78.680000000000007}]
[2,"Earth work in excavation by mechanical means (Hydraulic excavator)/manual means over areas (exceeding 30 cm in depth, 1.5 m in width as well as 10 sqm on plan) including getting out and disposal of excavated earth lead upto 50 m and lift upto 1.5 m, as directed by Engineer-in-charge.",0.1680724304,"Cum",{"$f":"'[1]Measurment sheet'!G10","v":8.4442500000000003},{"$f":"G8/E8","v":0},{"$f":"$G$33*C8%","v":0},null,125.95,{"$f":"E8*I8","v":1063.5532875000001}]
[3,"Providing and laying in position cement concrete of specified grade excluding the cost of centering and shuttering - All work up to plinth level : \"1:2:4 (1 cement : 2 coarse sand (zone-III) : 4 graded stone aggregate 20 mm nominal size). ",0.51157345799999998,"Cum",1,0,{"$f":"$G$33*C9%","v":0},null,3241.05,3241.05]
[4,"Providing and laying in position cement concrete of specified grade excluding the cost of centering and shuttering - All work up to plinth level :  1:4:8 (1 Cement : 4 coarse sand (zone-III) : 8 graded stone aggregate 40 mm nominal size)",0.67775848120000004,"Cum",{"$f":"'[1]Measurment sheet'!G16","v":1.3135500000000002},0,{"$f":"$G$33*C10%","v":0},null,3235.58,4250.096109000001]
[5,"Providing and laying in position specified grade of reinforced cement concrete, excluding the cost of centering, shuttering, finishing and reinforcement - All work up to plinth level : 1:2:4 (1 cement : 2 coarse sand : 4 graded stone aggregate 20 mm  nominal size). ",0.55752934269999999,"Cum",1,0,{"$f":"$G$33*C11%","v":0},null,4610.3999999999996,4610.3999999999996]
[6,"Centering and shuttering including strutting, propping etc. and removal of form for all heights :  Suspended floors, roofs, landings, balconies and access platform ",0.56898236000000002,"Sqm",{"$f":"'[1]Measurment sheet'!G29","v":8.6199999999999992},0,{"$f":"$G$33*C12%","v":0},null,417.48,3598.6776]
[7,"Steel reinforcement for R.C.C. work including straightening, cutting, bending, placing in position and binding all complete above plinth level. Thermo-Mechanically Treated bars of grade Fe-500 D or more.",0.62762843109999999,"KG",80,0,{"$f":"$G$33*C13%","v":0},null,4748.42,379873.6]
[8,"Brick work with common burnt clay F.P.S. (non modular) bricks of class designation 7.5 in foundation and plinth in:  Cement mortar 1:6 (1 cement : 6 coarse sand) ",3.8585397637000001,"Cum",{"$f":"'[1]Measurment sheet'!G35","v":6.2341499999999987},0,{"$f":"$G$33*C14%","v":0},null,565.30999999999995,3524.2273364999987]
[9,"Brick work with common burnt clay F.P.S. (non modular) bricks of class designation 7.5 in superstructure above plinth level up to floor V level in all shapes and sizes in : Cement mortar 1:6 (1 cement : 6 coarse sand) ",10.548271789699999,"Cum",{"$f":"'[1]Measurment sheet'!G41","v":14.050699999999997},0,{"$f":"$G$33*C15%","v":0},null,859.92,12082.477943999997]
[10,"Cement concrete flooring 1:2:4 (1 cement : 2 coarse sand : 4 graded stone aggregate) finished with a floating coat of neat cement, including cement slurry, but excluding the cost of nosing of steps etc. complete.40 mm thick with 20 mm nominal size stone aggregate",0.64259816599999997,"Sqm",{"$f":"'[1]Measurment sheet'!G47","v":16.5},0,{"$f":"$G$33*C16%","v":0},null,2719.15,44865.974999999999]
[11,"Providing and fixing Ist quality ceramic glazed wall tiles conforming to IS: 15622 (thickness to be specified by the manufacturer), of approved make, in all colours, shades except burgundy, bottle green, black of any size as approved by Engineer-in-Charge, in skirting, risers of steps and dados, over 12 mm thick bed of cement mortar 1:3 (1 cement : 3 coarse sand) and jointing with grey cement slurry @ 3.3kg per sqm, including pointing in white cement mixed with pigment of matching shade complete",0.91040321430000004,"sqm",{"$f":"'[1]Measurment sheet'!G52","v":9.0599999999999987},0,{"$f":"$G$33*C17%","v":0},null,244.5,2215.1699999999996]
[12,"12 mm cement plaster of mix :  1:6 (1 cement: 6 fine sand) ",1.3993982707999999,"Sqm",{"$f":"'[1]Measurment sheet'!G58","v":65.319999999999979},0,{"$f":"$G$33*C18%","v":0},null,635.54999999999995,41514.125999999982]
[13,"15 mm cement plaster on the rough side of single or half brick wall of mix :  1:6 (1 cement: 6 fine sand) ",1.6857182628,"Sqm",{"$f":"'[1]Measurment sheet'!G64","v":68.562999999999988},0,{"$f":"$G$33*C19%","v":0},null,615.49,42199.840869999993]
[14,"Demolishing cement concrete manually/ by mechanical means including disposal of material within 50 metres lead as per direction of Engineer - in - charge.  Nominal concrete 1:3:6 or richer mix (i/c equivalent design mix) ",0.15764231340000001,"Cum",1,0,{"$f":"$G$33*C20%","v":0},null,135.69999999999999,135.69999999999999]
[15,"Demolishing cement concrete manually/ by mechanical means including disposal of material within 50 metres lead as per direction of Engineer - in - charge. Nominal concrete 1:4:8 or leaner mix (i/c equivalent design mix) ",9.7260587800000006E-2,"Cum",1,0,{"$f":"$G$33*C21%","v":0},null,211.92,211.92]
[16,"Demolishing brick work manually/ by mechanical means including stacking of serviceable material and disposal of unserviceable material within 50 metres lead as per direction of Engineer-in-charge.",0.13324613569999999,"Cum",1,0,{"$f":"$G$33*C22%","v":0},null,155.51,155.51]
[17,"Dismantling doors, windows and clerestory windows (steel or wood) shutter including chowkhats, architrave, holdfasts etc. complete and stacking within 50 metres lead : Of area 3 sq. metres and below ",0.17470224579999999,"Each",7,0,{"$f":"$G$33*C23%","v":0},null,117.08,819.56]
[18,"Providing and fixing 18 mm thick gang saw cut, mirror polished, premoulded and prepolished, machine cut for kitchen platforms, vanity counters, window sills, facias and similar locations of required size, approved shade, colour and texture laid over 20 mm thick base cement mortar 1:4 (1 cement : 4 coarse sand), joints treated with white cement, mixed with matching pigment, epoxy touch ups, including rubbing, curing, moulding and polishing to edges to give high gloss finish etc. complete at all levels.Granite of any colour and shade Area of slab over 0.50 sqm",2.7432138902999998,"Sqm",{"$f":"'[1]Measurment sheet'!G70","v":5.8875000000000002},0,{"$f":"$G$33*C24%","v":0},null,91.59,539.23612500000002]
[19,"Finishing with Deluxe Multi surface paint system for interiors and exteriors using Primer as per manufacturers specifications :Two or more coats applied on walls @ 1.25 ltr/10 sqmover and including one coat of Special primer applied @ 0.75 ltr /10 sqm",3.0045361643000001,"Sqm",{"$f":"'[1]Measurment sheet'!G76","v":207.91},0,{"$f":"$G$33*C25%","v":0},null,8.36,1738.1275999999998]
[20,"Items not covered above but in DSR 2016",0.63243493660000005,"LS",1,{"$f":"G26/E26","v":0},{"$f":"$G$33*C26%","v":0},null,49.16,49.16]
[21,"Providing and fixing 12 mm thick frameless toughened glass door shutter of approved brand and manufacture, including providing and fixing top & bottom pivot & double action hydraulic floor spring type fixing arrangement and making necessary holes etc. for fixing required door fittings, all complete as per direction of Engineer-incharge",11.905740958399999,"Sqft",78.48,0,{"$f":"$G$33*C27%","v":0},null,63.65,4995.2520000000004]
[22,"Providing and fixing Powder coated aluminium work for windows including glazing with 12 mm thick glass (Plain/Frosted/Tinted) & extruded built up standard tubular sections/ appropriate Z sections and other sections of approved make conforming to IS: 733 and IS: 1285, fixing with dash fasteners of required dia and size, including necessary filling up the gaps at junctions, i.e. at top, bottom and sides with required EPDM rubber/ neoprene gasket , silicon sealent etc. Aluminium sections shall be smooth, rust free, straight, mitred and jointed mechanically wherever required including cleat angle, Aluminium snap beading/section for glazing / paneling, C.P. brass / stainless steel screws, all complete as per architectural drawings and the directions of Engineer-in-charge. (The weight of the extruded built up standard tubular sections should be min. 1.40 Kg / mtr. )",23.8647185968,"Sqft",240,0,{"$f":"$G$33*C28%","v":0},null,22.4,5376]
[23,"Interior wall cladding with 4 mm thick PVC Foam Board Panel  including fixed on dry wall surface with screws & other fixtures all complete as per the drawing & directions of engineer-in-charge. (Texture / colour/pattern of the panel will be finalised by Engineer-in-charge )",17.3592819755,"Sqft",851.06219999999996,0,{"$f":"$G$33*C29%","v":0},null,842.75,717232.66904999991]
[24,"Dismantling and refixing of existing glass gate of the size 2.60 x 2.75 m at desired location as per direction of Engineer - in- Charge",1.4023071825,"Job",1,0,{"$f":"$G$33*C30%","v":0},null,1454.55,1454.55]
[25,"Providing & fixing 3 mm thick colour coated Glass Reinforced Plastic sheet (translucent type) on the Steel structure up to 7.00 mtr. height as per direction of engineer-In-Charge.",7.5852070325999996,"Sqft",350,0,{"$f":"$G$33*C31%","v":0},null,997.05,348967.5]
[26,"Fixed Glazing with 12 mm thick frameless toughened glass in doors/windows of approved brand and manufacture, including all necessary fittings & fixtures made with S.S-304  i.e. glass connectors , brackets, clips etc. ",8.7707940141999998,"Sqft",80,0,{"$f":"$G$33*C32%","v":0},null,61.25,4900]
[null,null,{"$f":"SUM(C7:C32)","v":99.999999999799996},"Total amount quoted by bidder",null,null,null,null,null,{"$f":"SUM(J7:J32)","v":1629693.058922}]
["IN WORDS",null,null,{"$f":"rup(G33)","v":0}]
["Note -GST extra as applicable"]
[null,"1. Bidder has to quote in above unlocked cell (G33) only and take print out  to submitt alongwith Tech-bid. Item rate shall be calculated automatically. Calculated item rates upto four decimal points may be adjusted w.r.t. gross total amount and it shall be the itemwise final rate for  execution of contract and all other purposes."]
[null,"2. Quoted gross total amount should be considered only if quoted in this excel sheet and print out of this should only be considered for evaluation.  If Price is quoted in any other format other than the Excel Sheet enclosed to the NIT , the offer of the bidder  will be rejected"]
[null,"3.During the execution , the quantity of various items may vary to any extent depending on requirement of work/site and as per discretion of BHEL."]
[]
[]
[null,null,null,"(Signature and Seal of  Contractor  )"]